Cogmind - Beta 12 X1 @@@ ROGUE MODE // 2022.09.02 @ 02:04:57 Player: Decinym Result: Destroyed by as-84447 with Assembled Focal Cannon Performance ------------- Evolutions (3) 1500 Regions Visited (15) 3000 Robots Destroyed (208) 1040 Value Destroyed (6348) 6348 Prototype IDs (44) 880 Alien Tech Used (0) 0 Bonus (3417) 3417 TOTAL SCORE: 16185 Bonus ------- High Alert Combat Kills 477 Follower Combat Kills 37 Entered Garrisons 400 Aligned with FarCom 300 Met Imprinter 300 Destroyed Z-Imprinter 1000 Triggered Deep Caves Wall 500 Exposed GOLEM Chamber 500 Friendly Fire -97 Cogmind --------- Core Integrity 0/700 Matter 77/300 Energy 1236/1310 System Corruption 1% Temperature Cool (34) Movement Walking (132) Location -7/Deep Caves Parts ------- > --- POWER (1) -------- Reinforced Fission Core > --- PROPULSION (4) --- Carbon-fiber Leg Zionite Composite Leg I Assembled Alloy Leg Assembled Alloy Leg > --- UTILITY (6) ------ Assembled Nanovents Assembled Biocell Array Zionite Heavy Carapace Makeshift Armor Plating Assembled Alloy Armor > --- WEAPON (2) ------- Improved EM Pulse Cannon Improved EM Pulse Cannon > --- INVENTORY (5) ---- Improved Deuterium Engine Zionite Composite Leg I Zionite Biocell (600) Makeshift Armor Plating GAL Module Peak State ------------ > --- POWER ------------ Reinforced Fission Core > --- PROPULSION ------- Medium Treads Carbon-fiber Leg Assembled Alloy Leg Assembled Alloy Leg > --- UTILITY ---------- Assembled Nanovents Assembled Nanovents Assembled Biocell Array Assembled Alloy Armor GOLEM Unit > --- WEAPON ----------- Assembled Focal Cannon Assembled Focal Cannon > --- INVENTORY -------- Improved EM Pulse Cannon Improved EM Pulse Cannon Cooled Particle Cannon Impact Mace GAL Module [Rating: 102] Favorites ----------- Power Improved Deuterium Engine Engine Improved Deuterium Engine Power Core Reinforced Fission Core Propulsion Light Treads Treads Light Treads Leg Assembled Alloy Leg Wheel Armored Huge Wheel Utility Advanced Targeting Computer Device Advanced Cooling System Storage High-capacity Storage Unit Processor Advanced Targeting Computer Hackware Hacking Suite Protection Hardened Heavy Armor Plating Weapon Improved Spread Laser Energy Gun Improved Spread Laser Energy Cannon Light EM Pulse Cannon Ballistic Gun Heavy Assault Rifle Launcher Precision Grenade Launcher Special Weapon Plasma Cutter Impact Weapon Impact Mace Build | -11 -10 -10 -9 -9 -9 -8 -8 -8 -8 -8 -7 -7 -7 -7 -7 ------- Run | Scr Mat Min Mat Min Exi Min Mat Gar Mat Gar Fac Low Low Zio Dee Slots Evolved 6 | . . . 2 . . . 2 . . . 2 . . . . Power . | . . . . . . . . . . . . . . . . Propulsion 2 | . . . 1 . . . 1 . . . . . . . . Utility 4 | . . . 1 . . . 1 . . . 2 . . . . Weapon . | . . . . . . . . . . . . . . . . Parts Attached 231 | . 18 7 9 6 4 7 30 12 10 13 18 12 33 8 44 Power 12 | . 2 2 . 1 . . 3 . 1 1 . . 1 . 1 Engine 10 | . 2 2 . 1 . . 2 . 1 1 . . 1 . . Core 2 | . . . . . . . 1 . . . . . . . 1 Reactor . | . . . . . . . . . . . . . . . . Propulsion 50 | . 5 1 4 . 1 2 9 3 2 3 3 3 1 4 9 Treads 43 | . 5 1 4 . 1 1 9 3 2 3 3 3 . 4 4 Leg 2 | . . . . . . . . . . . . . . . 2 Wheel 5 | . . . . . . 1 . . . . . . 1 . 3 Hover . | . . . . . . . . . . . . . . . . Flight . | . . . . . . . . . . . . . . . . Utility 86 | . 6 . 1 1 2 . 9 5 2 4 4 6 23 . 23 Device 34 | . 4 . . . 1 . 2 1 . 2 1 4 12 . 7 Storage 8 | . 2 . . 1 1 . . . . . . 1 2 . 1 Processor 5 | . . . 1 . . . . 3 . . 1 . . . . Hackware 1 | . . . . . . . . . 1 . . . . . . Protection 38 | . . . . . . . 7 1 1 2 2 1 9 . 15 Artifact . | . . . . . . . . . . . . . . . . Weapon 83 | . 5 4 4 4 1 5 9 4 5 5 11 3 8 4 11 Energy Gun 37 | . . 1 2 . . . 7 2 2 2 7 2 5 3 4 Energy Cannon 14 | . . . 1 2 1 . . . 2 2 1 1 . . 4 Ballistic Gun 11 | . 5 3 . . . 3 . . . . . . . . . Ballistic Cannon . | . . . . . . . . . . . . . . . . Launcher 14 | . . . . 2 . 2 2 1 1 . 2 . 2 . 2 Special Weapon 1 | . . . . . . . . . . . . . . . 1 Impact Weapon 6 | . . . 1 . . . . 1 . 1 1 . 1 1 . Slashing Weapon . | . . . . . . . . . . . . . . . . Piercing Weapon . | . . . . . . . . . . . . . . . . Special Melee Weapon . | . . . . . . . . . . . . . . . . Unidentified Prototypes 16 | . . . 1 . . . 1 . 1 . 3 1 . . 9 Corrupted Parts 3 | . . . . . . . 1 . . . . . . 2 . System Corruption 23 | . . . . . . . 5 . . . . . . 18 . Parts Lost 40 | . 1 3 1 . 1 2 6 2 1 2 . 4 1 . 16 Power 2 | . . 1 . . . . 1 . . . . . . . . Propulsion 17 | . . 1 . . 1 2 1 . 1 2 . 3 . . 6 Utility 13 | . 1 . . . . . 1 1 . . . 1 1 . 8 Weapon 8 | . . 1 1 . . . 3 1 . . . . . . 2 Highest Loss Streak 6 | . 1 2 1 . 1 2 6 1 1 2 . 4 1 . 6 To Critical Strikes . | . . . . . . . . . . . . . . . . Average Slot Usage (%) 93 | . 94 99 95 100 89 95 97 92 99 99 99 99 91 90 83 Engine 7 | . 13 14 11 11 11 11 2 9 9 9 7 7 7 7 1 Core 1 | . . . . . . . 6 . . . . . . . 5 Treads 26 | . 26 27 32 33 32 26 35 30 36 35 29 29 25 27 9 Leg 1 | . 1 . . . . . . . . . . . . . 7 Wheel 1 | . . . . . . 5 . . . . . . 2 . 9 Device 10 | . 11 14 11 11 11 11 13 9 9 9 7 14 7 7 9 Storage 9 | . 14 14 11 11 11 11 9 9 9 9 7 7 7 7 7 Processor 9 | . . . 7 11 11 11 2 15 9 9 14 15 15 15 6 Protection 5 | . . . . . . . 9 1 . 7 15 6 8 7 10 Energy Gun 9 | . . 5 15 1 . . 13 17 12 16 14 14 14 10 3 Energy Cannon 3 | . . . 2 20 12 . . . 4 . . . . . 8 Ballistic Gun 4 | . 24 22 2 . . 15 3 . . . . . . . . Naked Turns . | . . . . . . . . . . . . . . . . Heaviest Build 129 | 10 52 52 53 94 94 53 78 76 58 71 75 78 120 120 129 Greatest Support 99 | 20 40 40 63 63 63 60 80 80 80 80 80 80 80 83 99 Greatest Overweight (x) 39 | . 1 1 . 1 1 3 3 2 . . 1 . 4 4 39 Average Overweight (x) . | . . 1 . . . 1 . . . . . . 1 1 1 Largest Inventory Capacity 25 | . 20 20 20 25 25 20 20 20 20 20 20 20 25 25 25 Average Capacity 20 | . 13 20 20 22 24 20 20 20 20 20 20 20 21 25 19 Most Carried 25 | . 20 20 20 22 25 20 20 17 20 20 20 20 25 25 25 Average Carried 19 | . 11 19 19 20 24 19 18 14 19 19 19 19 21 24 17 Final Capacity 25 | 8 20 20 20 25 20 20 20 20 20 20 20 20 25 25 5 Final Carried 25 | 6 20 20 19 22 20 20 14 14 20 20 19 20 25 25 5 Class Distribution -------------------- 50% | Mutant 46% | Scavenger-Mutant Dominant Class ---------------- Mutant | -10/Materials Scavenger-Mutant | -10/Mines Mutant | -9/Materials Mutant | -9/Mines Mutant | -9/Exiles Mutant | -8/Mines Mutant | -8/Materials Scavenger-Mutant | -8/Garrison Mutant | -8/Materials Mutant | -8/Garrison Scavenger-Mutant | -7/Factory Scavenger-Mutant | -7/Lower Caves Scavenger-Mutant | -7/Lower Caves Scavenger-Mutant | -7/Zion Mutant | -7/Deep Caves Resources | -11 -10 -10 -9 -9 -9 -8 -8 -8 -8 -8 -7 -7 -7 -7 -7 ----------- Run | Scr Mat Min Mat Min Exi Min Mat Gar Mat Gar Fac Low Low Zio Dee Matter Collected 5420 | 200 393 243 94 85 4 235 439 127 269 147 277 310 1560 70 967 Remotely . | . . . . . . . . . . . . . . . . Salvage Created 7607 | . 661 369 205 221 30 338 1848 391 462 458 533 205 743 . 1143 Parts 409 | . 47 29 13 19 2 28 98 18 38 36 26 6 23 . 26 Haulers Intercepted 5 | . 1 . . . . . 2 . 1 . 1 . . . . Recyclers Shooed 5 | . . . . 1 . . 2 . 2 . . . . . . Parts Field Recycled . | . . . . . . . . . . . . . . . . Retrieved Matter . | . . . . . . . . . . . . . . . . Parts Self-Destructed 22 | . . . . . . . . . . . . 11 11 . . Prevented . | . . . . . . . . . . . . . . . . Kills | -11 -10 -10 -9 -9 -9 -8 -8 -8 -8 -8 -7 -7 -7 -7 -7 ------- Run | Scr Mat Min Mat Min Exi Min Mat Gar Mat Gar Fac Low Low Zio Dee Combat Hostiles Destroyed 201 | . 18 12 4 7 . 11 34 13 11 20 11 7 16 . 37 Guns 118 | . 18 12 3 . . 3 19 5 5 20 8 7 15 . 3 Cannons 10 | . . . 1 2 . . . . 1 . . . . . 6 AOE 66 | . . . . 5 . 8 11 8 5 . 3 . 1 . 25 Classes Destroyed 22 | . 5 2 2 1 1 . 2 . . 1 1 1 3 . 3 Worker 14 | . 1 1 1 1 . . 4 . 4 . 2 . . . . Builder 5 | . 1 . . . . . 3 . 1 . . . . . . Tunneler 2 | . . 2 . . . . . . . . . . . . . Hauler 5 | . 1 . . . . . 2 . 1 . 1 . . . . Recycler 7 | . . . . 2 . 1 1 . 2 . 1 . . . . Minesweeper 1 | . . . . . . . . . . . . 1 . . . Operator 1 | . . . . . . . . . . . 1 . . . . Swarmer 58 | . 6 6 . 7 . 8 6 3 5 11 . 2 4 . . Grunt 74 | . 12 4 2 . . 3 20 8 5 6 8 5 1 . . Duelist 2 | . . . 1 . . . . 1 . . . . . . . Sentry 14 | . . . 1 . . . 6 1 1 2 2 . 1 . . Hunter 2 | . . . . . . . 1 . . . 1 . . . . Programmer 1 | . . . . . . . . . . 1 . . . . . Heavy 1 | . . . . . . . 1 . . . . . . . . Zionite 1 | . . . . . 1 . . . . . . . . . . Z-Light 8 | . . . . . . . . . . . . . . . 8 Decomposer 1 | . . . . . . . . . . . . 1 . . . Samaritan 1 | . . . . . . . . . . . . . 1 . . Assembler 1 | . . . . . . . . . . . . . . . 1 Assembled 30 | . . 2 . . . . . . . . . . . . 28 Golem 1 | . . . . . . . . . . . . . . . 1 Thug 3 | . . . . . . . . . . . . . 3 . . Savage 5 | . . . . . . . . . . . . . 5 . . Butcher 1 | . . . . . . . . . . . . . 1 . . Mutant 1 | . . . . . . . . . . . . . 1 . . Best Kill Streak 24 | . 5 3 2 4 . 4 12 8 8 4 5 4 5 . 24 Combat Bots Only 23 | . 5 3 2 3 . 4 7 8 5 4 3 4 5 . 23 Max Kills in Single Turn 7 | . 1 2 1 3 1 4 3 2 2 2 2 1 2 . 7 Gunslinging 1 | . . . . . . . . . . 1 . . 1 . . Exploded 7 | . . . . 2 . 4 3 2 1 . 2 . 1 . 7 Melee . | . . . . . . . . . . . . . . . . Uniques/NPCs Destroyed 1 | . . . . . . . . . . . . . . . 1 Z-Imprinter (-7/Deep Caves) Combat | -11 -10 -10 -9 -9 -9 -8 -8 -8 -8 -8 -7 -7 -7 -7 -7 -------- Run | Scr Mat Min Mat Min Exi Min Mat Gar Mat Gar Fac Low Low Zio Dee Damage Taken 11001 | . 535 623 183 191 37 474 2026 830 238 688 580 443 575 . 3578 Core 1501 | . 67 130 28 17 6 83 215 139 61 55 79 32 90 . 499 Absorbed by Shields 504 | . 198 . . . 14 164 128 . . . . . . . . Redirected to Shielding 102 | . . . . . . . 29 . . . . . . . 73 Regen/Repaired (Parts) 85 | . 14 . . . . . . . . . . . . 71 . Core Remaining (%) 50 | 100 . 21 . . . 66 . . . 14 . . . . . Volleys Fired 437 | . 53 40 12 11 1 22 69 16 25 33 26 23 35 . 71 Largest 2 | . 2 2 2 2 1 2 2 2 2 2 2 2 2 . 2 Hottest 250 | . 46 85 121 121 250 46 105 115 150 150 155 160 160 . 150 Shots Fired 784 | . 99 80 24 18 1 41 129 32 47 67 45 42 64 . 95 Gun 652 | . 99 80 21 2 . 38 123 28 38 65 38 38 59 . 23 Cannon 74 | . . . 3 13 1 . . . 4 2 . 4 . . 47 Launcher 54 | . . . . 3 . 3 6 4 5 . 7 . 5 . 21 Special 4 | . . . . . . . . . . . . . . . 4 Kinetic 227 | . 99 76 4 . . 38 10 . . . . . . . . Thermal 303 | . . 4 12 2 1 . . 11 42 65 38 42 59 . 27 Explosive 40 | . . . . 3 . 3 6 4 5 . 7 . . . 12 Electromagnetic 214 | . . . 8 13 . . 113 17 . 2 . . 5 . 56 Robot Hit Streak 33 | . 11 7 4 3 1 5 12 13 11 10 33 18 26 . 15 Robot Miss Streak 8 | . 4 5 3 2 2 4 4 4 7 8 4 4 4 . 6 Penetration Max . | . . . . . . . . . . . . . . . . Secondary Targets 17 | . 1 3 . . . 1 1 2 1 2 2 1 3 . . Max Gunslinging Chain 1 | . 1 1 . . . 1 1 1 1 1 1 1 1 . . Shots Hit Robots 584 | . 68 55 15 7 1 27 105 24 37 55 43 33 61 . 53 Core Hits 646 | . 32 30 8 11 1 16 92 29 51 66 67 44 86 . 113 Critical Kills 1 | . . . . . . . 1 . . . . . . . . Critical Parts Destroyed 1 | . . . . . . 1 . . . . . . . . . Critical Strikes 4 | . . . . . . 1 1 . . . . . . . 2 Destroy 2 | . . . . . . 1 1 . . . . . . . . Corrupt 2 | . . . . . . . . . . . . . . . 2 Melee Attacks 67 | . . . 1 . . . . 6 . 2 . . 12 46 . Impact 67 | . . . 1 . . . . 6 . 2 . . 12 46 . Slashing . | . . . . . . . . . . . . . . . . Piercing . | . . . . . . . . . . . . . . . . Sneak Attacks . | . . . . . . . . . . . . . . . . Combat Hostiles . | . . . . . . . . . . . . . . . . Follow-up Attacks . | . . . . . . . . . . . . . . . . Damage Inflicted 17983 | . 1061 599 227 524 25 834 3440 1131 1004 1029 1368 829 1760 . 4152 Guns 10160 | . 1054 599 167 14 . 409 1959 344 697 1029 1002 829 1481 . 576 Cannons 873 | . . . 60 100 25 . . . 20 . . . . . 668 Explosions 6775 | . . . . 402 . 393 1464 720 286 . 366 . 279 . 2865 Melee 67 | . . . . . . . . 67 . . . . . . . Ramming 65 | . 7 . . 8 . 32 17 . 1 . . . . . . Kinetic 2158 | . 1054 553 25 . . 409 117 . . . . . . . . Thermal 7229 | . . 46 95 68 25 . 770 220 717 1029 1002 829 1481 . 947 Explosive 4867 | . . . . 348 . 393 694 603 286 . 366 . . . 2177 Electromagnetic 3597 | . . . 107 100 . . 1842 241 . . . . 279 . 1028 Impact 67 | . . . . . . . . 67 . . . . . . . Slashing . | . . . . . . . . . . . . . . . . Piercing . | . . . . . . . . . . . . . . . . Highest Corruption 18 | . . . . . . . 6 6 8 8 . . . 18 1 Average Corruption 5 | . . . . . . . 5 6 7 8 . . . 17 1 Corruption Purged . | . . . . . . . . . . . . . . . . Corruption Blocked . | . . . . . . . . . . . . . . . . Effects 128 | . . . . . . . 25 37 23 34 . . . 2 7 Message Errors 37 | . . . . . . . 6 9 7 12 . . . 1 2 Matter Fused 26 | . . . . . . . 7 7 6 6 . . . . . Heat Flow Errors 16 | . . . . . . . 4 6 2 1 . . . 1 2 Energy Discharges 19 | . . . . . . . 2 6 3 6 . . . . 2 Data Loss (minor) 13 | . . . . . . . 5 2 3 2 . . . . 1 Data Loss (major) 4 | . . . . . . . . 3 . 1 . . . . . Misfires 10 | . . . . . . . . 4 2 4 . . . . . Alerts 2 | . . . . . . . 1 . . 1 . . . . . Weapon Failures 1 | . . . . . . . . . . 1 . . . . . Overload Shots . | . . . . . . . . . . . . . . . . Overflow Damage 301 | . . . . 39 6 27 46 19 18 . . . . . 146 Projectiles 64 | . . . . . . . . . . . . . . . 64 Explosions 228 | . . . . 39 6 27 46 10 18 . . . . . 82 Melee 9 | . . . . . . . . 9 . . . . . . . Knockbacks . | . . . . . . . . . . . . . . . . Impact . | . . . . . . . . . . . . . . . . Kinetic . | . . . . . . . . . . . . . . . . Secondary . | . . . . . . . . . . . . . . . . Self-Inflicted Damage 435 | . . . . 84 51 53 116 131 . . . . . . . Shots 16 | . . . . 3 4 1 4 4 . . . . . . . Rammed 9 | . 2 . . 3 . 2 1 . 1 . . . . . . Targets Rammed 9 | . 2 . . 3 . 2 1 . 1 . . . . . . Kicked . | . . . . . . . . . . . . . . . . Crushed . | . . . . . . . . . . . . . . . . Highest Temperature 327 | . 9 136 271 84 261 19 246 253 226 327 54 140 141 215 176 Average Temperature 59 | . 4 20 97 32 150 8 52 67 80 96 20 48 52 119 52 Received Heat Transfer 3315 | . 222 291 42 . . 205 681 270 108 288 186 207 138 . 677 Siege Activations . | . . . . . . . . . . . . . . . . Robots Corrupted 7 | . . . . . . . 4 . . . . . . . 3 Combat Hostiles 7 | . . . . . . . 4 . . . . . . . 3 Parts Fried 20 | . . . . . . . 11 . . . . . . . 9 Impact Corruptions 1 | . . . . . . . . 1 . . . . . . . Robots Melted . | . . . . . . . . . . . . . . . . Combat Hostiles . | . . . . . . . . . . . . . . . . Parts Melted 11 | . . . 1 . . . 1 1 . 1 2 . 1 . 4 Heat Transferred 7364 | . . 111 222 137 80 . 750 357 612 845 1000 785 1855 . 610 Parts Sabotaged . | . . . . . . . . . . . . . . . . Parts Stolen . | . . . . . . . . . . . . . . . . Parts Stripped . | . . . . . . . . . . . . . . . . Power Chain Reactions 16 | . . . . 1 . . 10 2 . . . . . . 3 Missiles Intercepted . | . . . . . . . . . . . . . . . . Alert | -11 -10 -10 -9 -9 -9 -8 -8 -8 -8 -8 -7 -7 -7 -7 -7 ------- Run | Scr Mat Min Mat Min Exi Min Mat Gar Mat Gar Fac Low Low Zio Dee Peak Influence 869 | . 364 110 128 356 . 265 709 869 623 716 629 . . . . Initial 463 | . . 34 . 49 . . 25 463 423 81 375 . . . . Average 271 | . 193 28 65 110 . 175 181 746 317 424 483 . . . . Maximum Alert Level 3 | . 1 . . 1 . 1 3 3 2 3 2 . . . . Low Security (%) 54 | . 61 100 100 84 . 63 73 . 35 13 . . . . . Level 1 16 | . 38 . . 15 . 36 11 . 35 26 11 . . . . Level 2 17 | . . . . . . . 9 15 28 55 88 . . . . Level 3 11 | . . . . . . . 5 84 . 3 . . . . . Level 4 . | . . . . . . . . . . . . . . . . Level 5 . | . . . . . . . . . . . . . . . . High Security . | . . . . . . . . . . . . . . . . Max Security . | . . . . . . . . . . . . . . . . Squads Dispatched 17 | . 4 . 2 . . . 8 . 1 . 2 . . . . Investigation 4 | . 2 . . . . . 1 . . . 1 . . . . Extermination . | . . . . . . . . . . . . . . . . Reinforcement 10 | . 2 . 2 . . . 5 . . . 1 . . . . Assault . | . . . . . . . . . . . . . . . . Garrison 3 | . . . . . . . 2 . 1 . . . . . . Intercept . | . . . . . . . . . . . . . . . . Searches Triggered . | . . . . . . . . . . . . . . . . Construction Impeded 3 | . . . . . . . 3 . . . . . . . . Haulers Reinforced . | . . . . . . . . . . . . . . . . Active Scanning Responses . | . . . . . . . . . . . . . . . . Cargo Convoy Interrupts . | . . . . . . . . . . . . . . . . Stealth | -11 -10 -10 -9 -9 -9 -8 -8 -8 -8 -8 -7 -7 -7 -7 -7 --------- Run | Scr Mat Min Mat Min Exi Min Mat Gar Mat Gar Fac Low Low Zio Dee Distress Signals 4 | . . . 2 . . . 2 . . . . . . . . Communications Jammed . | . . . . . . . . . . . . . . . . Distress Signals . | . . . . . . . . . . . . . . . . Times Spotted 265 | . 25 16 7 8 . 11 51 13 14 21 12 10 17 . 60 Peak Tracking Total 37 | . 5 3 3 4 2 4 8 9 3 5 3 4 5 . 37 Tactical Retreats 7 | . . . . 1 . . 3 . . 1 . 2 . . . Traps | -11 -10 -10 -9 -9 -9 -8 -8 -8 -8 -8 -7 -7 -7 -7 -7 ------- Run | Scr Mat Min Mat Min Exi Min Mat Gar Mat Gar Fac Low Low Zio Dee Traps Triggered 11 | . 4 . . . . . 3 1 1 1 1 . . . . Indirectly . | . . . . . . . . . . . . . . . . Trap Hack Attempts . | . . . . . . . . . . . . . . . . Triggered . | . . . . . . . . . . . . . . . . Disarmed . | . . . . . . . . . . . . . . . . Reprogrammed . | . . . . . . . . . . . . . . . . Reused . | . . . . . . . . . . . . . . . . Traps Extracted . | . . . . . . . . . . . . . . . . Installed . | . . . . . . . . . . . . . . . . Triggered 4 | . . . . . . . . . . . . 4 . . . Most Traps Carried 4 | . . . . 4 4 4 4 . . . . . . . . Machines | -11 -10 -10 -9 -9 -9 -8 -8 -8 -8 -8 -7 -7 -7 -7 -7 ---------- Run | Scr Mat Min Mat Min Exi Min Mat Gar Mat Gar Fac Low Low Zio Dee Machines Disabled 12 | . 1 . . . . . 2 . . 3 . . . 3 3 Max in Single Turn 1 | . 1 . . . . . 1 . . 1 . . . 1 1 Machines Sabotaged . | . . . . . . . . . . . . . . . . Garrisons Compromised . | . . . . . . . . . . . . . . . . Overloaded Fab Kills . | . . . . . . . . . . . . . . . . Hacking | -11 -10 -10 -9 -9 -9 -8 -8 -8 -8 -8 -7 -7 -7 -7 -7 --------- Run | Scr Mat Min Mat Min Exi Min Mat Gar Mat Gar Fac Low Low Zio Dee Machines Accessed 27 | . 3 . 1 . 2 . 5 1 6 2 4 1 1 1 . Terminals 18 | . 2 . 1 . . . 4 1 5 2 3 . . . . Fabricators 1 | . . . . . . . . . . . 1 . . . . Repair Stations 1 | . 1 . . . . . . . . . . . . . . Recycling Units . | . . . . . . . . . . . . . . . . Scanalyzers . | . . . . . . . . . . . . . . . . Garrison Access 2 | . . . . . . . 1 . 1 . . . . . . Total Hacks 66 | . 7 . 2 . 2 . 15 2 19 4 8 1 1 5 . Successful 34 | . 3 . 1 . 2 . 7 1 8 1 4 1 1 5 . Failed 32 | . 4 . 1 . . . 8 1 11 3 4 . . . . Catastrophic 7 | . 1 . 1 . . . 2 . 1 1 1 . . . . Database Lockouts . | . . . . . . . . . . . . . . . . Manual 36 | . 5 . 2 . 1 . 9 . 15 . 4 . . . . Terminals 51 | . 5 . 2 . . . 14 2 18 4 6 . . . . Fabricators 2 | . . . . . . . . . . . 2 . . . . Repair Stations 2 | . 2 . . . . . . . . . . . . . . Recycling Units . | . . . . . . . . . . . . . . . . Scanalyzers . | . . . . . . . . . . . . . . . . Garrison Access 2 | . . . . . . . 1 . 1 . . . . . . Terminal Hacks 25 | . . . 1 . 2 . 5 1 5 1 3 1 1 5 . Record 1 | . . . . . 1 . . . . . . . . . . Part Schematic 5 | . . . . . . . . . . . . . . 5 . Open Door 2 | . . . . . . . . . . . . 1 1 . . Open DSF 1 | . . . . . . . . . . . 1 . . . . Branch Access Points 3 | . . . 1 . . . 1 . . . 1 . . . . Emergency Access Points 2 | . . . . . . . . 1 . 1 . . . . . Alert Level 2 | . . . . . . . . . 1 . 1 . . . . Unreport Threat 5 | . . . . . . . 2 . 3 . . . . . . Zone Layout 3 | . . . . . . . 2 . 1 . . . . . . EX-Prototype ID Bank 1 | . . . . . 1 . . . . . . . . . . Fabricator Hacks . | . . . . . . . . . . . . . . . . Repair Station Hacks 2 | . 2 . . . . . . . . . . . . . . Scan Component 1 | . 1 . . . . . . . . . . . . . . Repair 1 | . 1 . . . . . . . . . . . . . . Recycling Unit Hacks . | . . . . . . . . . . . . . . . . Scanalyzer . | . . . . . . . . . . . . . . . . Garrison Access Hacks 2 | . . . . . . . 1 . 1 . . . . . . Unlock Access 2 | . . . . . . . 1 . 1 . . . . . . Unauthorized Hacks 5 | . 1 . . . . . 1 . 2 . 1 . . . . Terminals 5 | . 1 . . . . . 1 . 2 . 1 . . . . Botnet 5 | . 1 . . . . . 1 . 2 . 1 . . . . Fabricators . | . . . . . . . . . . . . . . . . Repair Stations . | . . . . . . . . . . . . . . . . Recycling Units . | . . . . . . . . . . . . . . . . Scanalyzers . | . . . . . . . . . . . . . . . . Garrison Access . | . . . . . . . . . . . . . . . . Data Cores Recovered . | . . . . . . . . . . . . . . . . Used . | . . . . . . . . . . . . . . . . Hacking Detections 18 | . 3 . 1 . . . 4 1 4 2 3 . . . . Full Trace Events 4 | . . . . . . . 2 . . 1 1 . . . . Feedback Events . | . . . . . . . . . . . . . . . . Feedback Blocked . | . . . . . . . . . . . . . . . . Robot Schematics Acquired 4 | . . . . . . . . . . . . . . 4 . Robots Built . | . . . . . . . . . . . . . . . . Authchips . | . . . . . . . . . . . . . . . . Time . | . . . . . . . . . . . . . . . . Total Robot Build Rating . | . . . . . . . . . . . . . . . . Part Schematics Acquired 20 | . . . . . . . . . . . . . . 20 . Parts Built . | . . . . . . . . . . . . . . . . Authchips . | . . . . . . . . . . . . . . . . Time . | . . . . . . . . . . . . . . . . Total Part Build Rating . | . . . . . . . . . . . . . . . . Parts Repaired 1 | . 1 . . . . . . . . . . . . . . Time 32 | . 32 . . . . . . . . . . . . . . Parts Recycled . | . . . . . . . . . . . . . . . . Recycled Matter . | . . . . . . . . . . . . . . . . Retrieved Matter . | . . . . . . . . . . . . . . . . Retrieved Components . | . . . . . . . . . . . . . . . . Parts Scanalyzed . | . . . . . . . . . . . . . . . . Part Schematics Acquired . | . . . . . . . . . . . . . . . . Parts Damaged . | . . . . . . . . . . . . . . . . Bothacking | -11 -10 -10 -9 -9 -9 -8 -8 -8 -8 -8 -7 -7 -7 -7 -7 ------------ Run | Scr Mat Min Mat Min Exi Min Mat Gar Mat Gar Fac Low Low Zio Dee Used RIF Installer . | . . . . . . . . . . . . . . . . Robots Hacked . | . . . . . . . . . . . . . . . . Non-combat . | . . . . . . . . . . . . . . . . Combat . | . . . . . . . . . . . . . . . . Robot Hacks Applied . | . . . . . . . . . . . . . . . . Relay Couplers Released . | . . . . . . . . . . . . . . . . Fabnet Peak Effective % . | . . . . . . . . . . . . . . . . Robots Rewired 2 | . . . . . . . . . . . . . 2 . . Allies Hacked . | . . . . . . . . . . . . . . . . Hacks Repelled . | . . . . . . . . . . . . . . . . Allies | -11 -10 -10 -9 -9 -9 -8 -8 -8 -8 -8 -7 -7 -7 -7 -7 -------- Run | Scr Mat Min Mat Min Exi Min Mat Gar Mat Gar Fac Low Low Zio Dee Total Allies 9 | . . 1 . . . . . . . . . . 2 5 1 Largest Group 7 | . . 1 . . . . . . . . . . 2 7 7 Highest-Rated Group 188 | . . 31 . . . . . . . . . . 62 188 188 Highest-Rated Ally 99 | . . 31 . . . . . . . . . . 31 31 99 Total Orders 1 | . . . . . . . . . . . . . 1 . . STAY 1 | . . . . . . . . . . . . . 1 . . Ally Attacks 131 | . . 17 . . . . . . . . . . 13 . 101 Total Damage 2455 | . . 166 . . . . . . . . . . 230 . 2059 Kills 32 | . . 5 . . . . . . . . . . 1 . 26 Allies Corrupted . | . . . . . . . . . . . . . . . . Allies Melted 1 | . . . . . . . . . . . . . . . 1 Intel | -11 -10 -10 -9 -9 -9 -8 -8 -8 -8 -8 -7 -7 -7 -7 -7 ------- Run | Scr Mat Min Mat Min Exi Min Mat Gar Mat Gar Fac Low Low Zio Dee Robot Analysis Total . | . . . . . . . . . . . . . . . . Derelict Logs Recovered 5 | . . 1 . 1 . . . . . . . 1 . 2 . Drone Launches . | . . . . . . . . . . . . . . . . Drone Recoveries . | . . . . . . . . . . . . . . . . Exploration | -11 -10 -10 -9 -9 -9 -8 -8 -8 -8 -8 -7 -7 -7 -7 -7 ------------- Run | Scr Mat Min Mat Min Exi Min Mat Gar Mat Gar Fac Low Low Zio Dee Turns Passed 19359 | . 1257 1762 233 1343 544 422 1095 1225 692 1249 589 1286 2215 2677 2770 Spaces Moved 8681 | 1 572 678 111 677 222 215 482 233 297 683 281 736 1119 1070 1304 Core 4 | . . . . . . . . . . . . . . . 4 Treads 6878 | . 513 678 111 677 222 87 465 233 297 683 281 736 711 962 222 Legs 345 | 1 59 . . . . . . . . . . . . . 285 Wheels 1454 | . . . . . . 128 17 . . . . . 408 108 793 Hover . | . . . . . . . . . . . . . . . . Flight . | . . . . . . . . . . . . . . . . Fastest Speed 120 | 120 120 240 160 160 160 145 145 165 165 162 162 160 145 160 123 Average Speed 183 | 120 176 240 160 190 238 153 164 214 166 164 162 160 163 236 160 Slowest Speed 2000 | 120 240 240 160 240 240 240 170 320 167 167 240 160 320 320 2000 Overloaded Moves . | . . . . . . . . . . . . . . . . Propulsion Burnouts . | . . . . . . . . . . . . . . . . Robots Hopped 1 | . . . . . . . . . . . . 1 . . . Cave-ins Triggered . | . . . . . . . . . . . . . . . . Exploration Rate (%) 57 | 2 84 97 15 99 60 66 61 17 37 60 10 82 78 85 70 Regions Visited 15 Branch Regions 8 Pre-discovered Areas 8 | . . . . 2 1 . . . . . . 2 . 3 . Known Exits Taken 4 | . . . 1 . . . 1 . 1 . 1 . . . . Unknown Exits Taken 9 | 1 1 1 . 1 1 1 . . . . . 1 1 1 . Scrap Searched 20 | . . 1 . 1 . 2 . . . . . 2 11 3 . Spaces Dug 30 | . . . 1 7 . . . . 6 . . 4 12 . . Terrain Destroyed 237 | . . . 1 34 2 22 81 20 38 . 11 4 12 . 12 Melee 13 | . . . 1 . . . . . . . . . 12 . . Projectile 6 | . . . . . . . . . 2 . . 4 . . . AOE 218 | . . . . 34 2 22 81 20 36 . 11 . . . 12 Terrain Rammed . | . . . . . . . . . . . . . . . . Walls Destroyed . | . . . . . . . . . . . . . . . . Machines Disabled . | . . . . . . . . . . . . . . . . Actions | -11 -10 -10 -9 -9 -9 -8 -8 -8 -8 -8 -7 -7 -7 -7 -7 --------- Run | Scr Mat Min Mat Min Exi Min Mat Gar Mat Gar Fac Low Low Zio Dee Total 11214 | . 718 745 142 708 239 264 661 922 455 744 367 799 1417 1139 1894 Wait 1464 | . 38 16 3 3 . 11 35 651 87 . 28 22 158 4 408 Move 8666 | . 571 677 110 676 221 214 482 232 297 682 280 733 1118 1069 1304 Hop 1 | . . . . . . . . . . . . 1 . . . Pick Up 118 | . 23 2 3 6 5 6 14 . 18 6 2 2 10 5 16 Fast Attach 96 | . 9 2 3 . . . 13 4 4 4 11 5 18 2 21 Attach 74 | . 6 2 3 . 3 4 9 4 2 4 3 4 10 2 18 Detach 23 | . 1 . . . . . . 3 1 . 3 1 8 . 6 Swap 61 | . 3 3 3 6 1 3 8 4 4 5 4 3 5 4 5 Drop 179 | . 12 3 4 3 8 2 30 2 16 8 10 5 24 7 45 Fire 437 | . 53 40 12 11 1 22 69 16 25 33 26 23 35 . 71 Melee 67 | . . . 1 . . . . 6 . 2 . . 12 46 . Ram 2 | . . . . . . 2 . . . . . . . . . Kick . | . . . . . . . . . . . . . . . . Crush 7 | . 2 . . 3 . . 1 . 1 . . . . . . Escape Stasis . | . . . . . . . . . . . . . . . . Rewire 19 | . . . . . . . . . . . . . 19 . . Trap . | . . . . . . . . . . . . . . . . Miscellaneous . | . . . . . . . . . . . . . . . . Route ------- -11/Scrapyard -10/Materials (discovered 4 exits: *Mat x3 / [*Min]) -10/Mines (discovered 2 exits: *Mat x2) -9/Materials (discovered 2 exits: *Min x2) -9/Mines (discovered 3 exits: *Mat x2 / *Exi) -9/Exiles -8/Mines -8/Materials (discovered 3 exits: *Fac x2 / Gar) -8/Garrison -8/Materials (discovered 2 exits: *Fac / Gar) -8/Garrison (discovered 3 exits: *Fac x3) -7/Factory (discovered 4 exits: Sto x2 / *Low x2) -7/Lower Caves -7/Lower Caves -7/Zion (discovered 2 exits: [*Dee] / [*Pro]) -7/Deep Caves History --------- Turn | Location | Event 1 | -11/Scrapyard | Discovered new exit (range 0) 1 | -11/Scrapyard | Entered Materials 261 | -10/Materials | Discovered new exit (range 16) 318 | -10/Materials | Build established: Mutant 466 | -10/Materials | Repaired Shield Generator 648 | -10/Materials | Discovered new exit (range 13) 928 | -10/Materials | Discovered new exit (range 16) 1222 | -10/Materials | Discovered new exit (range 16) 1258 | -10/Materials | Entered Mines 1500 | -10/Mines | Received a Mining Laser from a helpful Derelict 1500 | -10/Mines | Discovered new exit (range 8) 1678 | -10/Mines | Assembled infested the area 1904 | -10/Mines | Discovered new exit (range 8) 1924 | -10/Mines | Core integrity fell below 50% 2169 | -10/Mines | A weapon hastily lodged in a ceiling crevice suddenly fell to the ground 2251 | -10/Mines | Build established: Scavenger-Mutant 2571 | -10/Mines | Learned Materials trap positions 3020 | -10/Mines | Entered Materials 3020 | -9/Materials | Evolved 2 slots: Propulsion x1, Utility x1 3021 | -9/Materials | Loaded intel: 11 trap records 3125 | -9/Materials | Identified exit to Mines 3253 | -9/Materials | Entered Mines 3254 | -9/Mines | Learned location of Storage (-7) 3330 | -9/Mines | Discovered new exit (range 10) 3369 | -9/Mines | Build established: Mutant 3456 | -9/Mines | Discovered new exit (range 10) 3958 | -9/Mines | Found a hidden stash of uninstalled traps 4109 | -9/Mines | Deemed a non-threat by the Exiles lab entrance 4587 | -9/Mines | Discovered new exit (range 5) 4596 | -9/Mines | Entered Exiles 4679 | -9/Exiles | Met 8R-AWN 4717 | -9/Exiles | Met EX-HEX 4787 | -9/Exiles | Met EX-BIN 4820 | -9/Exiles | Aligned with FarCom system 4823 | -9/Exiles | Given EX-Vault access code 4885 | -9/Exiles | Opened EX-Vault 4905 | -9/Exiles | Found Firepult 4956 | -9/Exiles | Warned to stay clear of 0b10 Research branches 4986 | -9/Exiles | Exiles lab attacked by MAIN.C 5035 | -9/Exiles | Learned location of Zion (-7) 5107 | -9/Exiles | Discovered new exit (range 10) 5129 | -9/Exiles | Attacked by the Exiles 5140 | -9/Exiles | Entered Mines 5542 | -8/Mines | Discovered new exit (range 14) 5562 | -8/Mines | Entered Materials 5562 | -8/Materials | Evolved 2 slots: Propulsion x1, Utility x1 6000 | -8/Materials | Discovered new exit (range 13) 6458 | -8/Materials | Garrison activated, responded to threat 6543 | -8/Materials | Lost 6 parts (1p1n1u3w) 6550 | -8/Materials | Discovered new exit (range 9) 6562 | -8/Materials | Destroyed 7 combat bots 6657 | -8/Materials | Identified exit to Garrison 6657 | -8/Materials | Entered Garrison 6711 | -8/Garrison | Core integrity fell below 50% 6733 | -8/Garrison | Destroyed 8 combat bots 6836 | -8/Garrison | Triggered checkpoint 6868 | -8/Garrison | Build established: Scavenger-Mutant 6873 | -8/Garrison | Discovered new exit (range 3) 7882 | -8/Garrison | Entered Materials 8122 | -8/Materials | Discovered new exit (range 16) 8279 | -8/Materials | Build established: Mutant 8500 | -8/Materials | Garrison activated, responded to threat 8574 | -8/Materials | Identified exit to Garrison 8574 | -8/Materials | Entered Garrison 8594 | -8/Garrison | Triggered checkpoint 8636 | -8/Garrison | Core integrity fell below 20% 8738 | -8/Garrison | Triggered checkpoint 8856 | -8/Garrison | Discovered new exit (range 11) 8986 | -8/Garrison | Triggered checkpoint 9065 | -8/Garrison | Discovered new exit (range 14) 9600 | -8/Garrison | Build established: Scavenger-Mutant 9606 | -8/Garrison | Triggered checkpoint 9675 | -8/Garrison | Discovered new exit (range 12) 9718 | -8/Garrison | Triggered checkpoint 9823 | -8/Garrison | Entered Factory 9823 | -7/Factory | Evolved 2 slots: Utility x2 10127 | -7/Factory | Identified exit to Storage 10127 | -7/Factory | Identified exit to Lower Caves 10412 | -7/Factory | Entered Lower Caves 10437 | -7/Lower Caves | Met a Warlord Commander 10438 | -7/Lower Caves | Learned location of Warlord (-4) 10443 | -7/Lower Caves | Found Encrypted Comm Array 10459 | -7/Lower Caves | Lost 4 parts (3n1u) 10516 | -7/Lower Caves | Found Prototype Device 10638 | -7/Lower Caves | Identified Heart of Steel 10821 | -7/Lower Caves | Encountered a Warlord checkpoint 10968 | -7/Lower Caves | Spotted B-75 Beast 11652 | -7/Lower Caves | Discovered new exit (range 9) 11698 | -7/Lower Caves | Entered another Lower Caves area 12454 | -7/Lower Caves | Attacked by a faux Warlord 13225 | -7/Lower Caves | Discovered new exit (range 6) 13231 | -7/Lower Caves | Ambushed by wild Derelicts 13438 | -7/Lower Caves | Attracted the attention of an 0b10 checkpoint 13516 | -7/Lower Caves | Build established: Mutant 13913 | -7/Lower Caves | Entered Zion 13913 | -7/Zion | Accompanied by 2 allies 14014 | -7/Zion | Gained Derelict followers 14086 | -7/Zion | Learned location of Quarantine (-3) 14089 | -7/Zion | System corruption reached 10% 14139 | -7/Zion | System corruption cleaned by Quarantine Array 14295 | -7/Zion | Discovered new exit (range 15) 14548 | -7/Zion | Found GAL Module 14580 | -7/Zion | Build established: Scavenger-Mutant 14841 | -7/Zion | Learned Factory security intel 14868 | -7/Zion | Learned location of Data Miner (-6) 15994 | -7/Zion | Received a visual enhancement algorithm 16573 | -7/Zion | Discovered new exit (range 3) 16573 | -7/Zion | Saw the warning signs outside the Deep Caves entrance 16590 | -7/Zion | Entered Deep Caves 16590 | -7/Deep Caves | Accompanied by 7 allies 17079 | -7/Deep Caves | Attacked by Z-Imprinter 17117 | -7/Deep Caves | Allies destroyed Z-Imprinter 17139 | -7/Deep Caves | Found Prototype Protection 17139 | -7/Deep Caves | Identified Zio. Weapon Casing 17151 | -7/Deep Caves | Lost 5 parts (3n1u1w) 17153 | -7/Deep Caves | Found Prototype Device 17153 | -7/Deep Caves | Identified Zio. Metafield Generator 17229 | -7/Deep Caves | Z-Facility disabled 17246 | -7/Deep Caves | Core integrity fell below 50% 17319 | -7/Deep Caves | Lost 3 parts (2n1w) 17369 | -7/Deep Caves | Found Prototype Protection 17369 | -7/Deep Caves | Identified Zio. Heavy Carapace 17409 | -7/Deep Caves | Build established: Mutant 17410 | -7/Deep Caves | Found Zio. Heavy Carapace 17433 | -7/Deep Caves | Found Zio. Weapon Casing 17457 | -7/Deep Caves | Found Zio. Heavy Carapace 17651 | -7/Deep Caves | Spotted as-17360 17665 | -7/Deep Caves | Destroyed as-17360 17973 | -7/Deep Caves | Heart of Steel transformed into Warbot 18309 | -7/Deep Caves | Triggered Deep Caves wall 18311 | -7/Deep Caves | Spotted AS-46703 18318 | -7/Deep Caves | Exposed GOLEM chamber 18319 | -7/Deep Caves | Core integrity fell below 20% 18329 | -7/Deep Caves | Spotted AS-22245 18337 | -7/Deep Caves | Destroyed AS-46703 18364 | -7/Deep Caves | Lost 6 parts (1n5u) 18370 | -7/Deep Caves | Destroyed 23 combat bots 18370 | -7/Deep Caves | Allies destroyed AS-22245 18478 | -7/Deep Caves | Found GOLEM Unit 18753 | -7/Deep Caves | Build established: Golem 19159 | -7/Deep Caves | Found Zio. Heavy Carapace 19165 | -7/Deep Caves | Found Zio. Weapon Casing 19256 | -7/Deep Caves | Build established: Mutant 19356 | -7/Deep Caves | Spotted as-84447 19360 | -7/Deep Caves | Destroyed by as-84447 with Assembled Focal Cannon Last Messages --------------- 19114_ Acquired Prototype Leg. 19114_ Identified Zio. Composite Leg I. 19145_ A NOFT2LF56DT%X LGTVOLDZQYTVWNE